Cogmind - Beta 10.2 @@@ ROGUE MODE // 2021.11.15 @ 20:32:04 Player: Jeptha Result: Destroyed by S-10 Pest with Light Assault Rifle Performance ------------- Evolutions (0) 0 Regions Visited (1) 200 Robots Destroyed (11) 55 Value Destroyed (338) 338 Prototype IDs (0) 0 Alien Tech Used (0) 0 Bonus (0) 0 TOTAL SCORE: 593 Bonus ------- None Cogmind --------- Core Integrity 0/250 Matter 173/300 Energy 80/100 System Corruption 0% Temperature Cool (0) Movement Rolling (100) Location -10/Materials Parts ------- > --- POWER (1) -------- (None) > --- PROPULSION (2) --- Compact Wheel Compact Wheel > --- UTILITY (2) ------ Large Storage Unit Propulsion Shielding > --- WEAPON (2) ------- Particle Cannon > --- INVENTORY (10) --- Ion Engine Ion Engine Heat Sink Large Storage Unit Sensor Array EM Pulse Gun Particle Cannon Light Cannon Grenade Launcher Peak State ------------ > --- POWER ------------ Light Ion Engine > --- PROPULSION ------- Aluminum Leg Aluminum Leg > --- UTILITY ---------- Large Storage Unit Large Storage Unit > --- WEAPON ----------- Particle Cannon Light Assault Rifle > --- INVENTORY -------- Ion Engine Ion Engine Improved Ion Engine Improved Ion Engine Wheel Wheel Heat Sink Disposable Heat Sink Disposable Heat Sink Particle Cannon Particle Cannon Particle Cannon Assault Rifle Light Cannon Grenade Launcher [Rating: 10] Favorites ----------- Power Light Ion Engine Engine Light Ion Engine Propulsion Aluminum Leg Leg Aluminum Leg Wheel Wheel Utility Large Storage Unit Device Heat Sink Storage Large Storage Unit Protection Propulsion Shielding Weapon Assault Rifle Energy Gun Backup Laser I Energy Cannon Particle Cannon Ballistic Gun Assault Rifle Build | -11 -10 ------- Run | Scr Mat Slots Evolved . | . . Power . | . . Propulsion . | . . Utility . | . . Weapon . | . . Parts Attached 28 | 6 22 Power 9 | 2 7 Engine 9 | 2 7 Core . | . . Reactor . | . . Propulsion 7 | 2 5 Treads . | . . Leg 2 | . 2 Wheel 5 | 2 3 Hover . | . . Flight . | . . Utility 5 | . 5 Device 2 | . 2 Storage 2 | . 2 Processor . | . . Hackware . | . . Protection 1 | . 1 Artifact . | . . Weapon 7 | 2 5 Energy Gun 1 | 1 . Energy Cannon 3 | . 3 Ballistic Gun 3 | 1 2 Ballistic Cannon . | . . Launcher . | . . Special Weapon . | . . Impact Weapon . | . . Slashing Weapon . | . . Piercing Weapon . | . . Special Melee Weapon . | . . Unidentified Prototypes . | . . Parts Lost 3 | . 3 Power 1 | . 1 Propulsion . | . . Utility . | . . Weapon 2 | . 2 Highest Loss Streak 2 | . 2 Average Slot Usage (%) 93 | . 93 Engine 13 | . 13 Leg 19 | . 19 Wheel 7 | . 7 Device 4 | . 4 Storage 18 | . 18 Protection 2 | . 2 Energy Gun 6 | . 6 Energy Cannon 5 | . 5 Ballistic Gun 13 | . 13 Naked Turns . | . . Heaviest Build 41 | 9 41 Greatest Support 32 | 20 32 Greatest Overweight (x) 4 | 2 4 Average Overweight (x) . | . . Largest Inventory Capacity 16 | 4 16 Average Capacity 10 | 4 11 Most Carried 16 | 4 16 Average Carried 8 | 2 8 Final Capacity 10 | 4 10 Final Carried 9 | 3 9 Class Distribution -------------------- 100% | Mutant Dominant Class ---------------- Mutant | -10/Materials Resources | -11 -10 ----------- Run | Scr Mat Matter Collected 478 | 262 216 Remotely . | . . Salvage Created 397 | 38 359 Parts 24 | 2 22 Haulers Intercepted . | . . Recyclers Shooed 1 | . 1 Parts Field Recycled . | . . Retrieved Matter . | . . Parts Self-Destructed . | . . Prevented . | . . Kills | -11 -10 ------- Run | Scr Mat Combat Hostiles Destroyed 8 | 1 7 Guns 4 | 1 3 Cannons 4 | . 4 Classes Destroyed 3 | 1 2 Worker 1 | . 1 Watcher 2 | . 2 Grunt 8 | 1 7 Best Kill Streak 3 | 1 3 Combat Bots Only 3 | 1 3 Max Kills in Single Turn 1 | 1 1 Gunslinging . | . . Exploded . | . . Melee . | . . Uniques/NPCs Destroyed . | . . Combat | -11 -10 -------- Run | Scr Mat Damage Taken 936 | 57 879 Core 253 | 12 241 Absorbed by Shields . | . . Core Remaining (%) 95 | 95 . Volleys Fired 61 | 4 57 Largest 2 | 2 2 Hottest 88 | 70 88 Shots Fired 85 | 8 77 Gun 71 | 8 63 Cannon 14 | . 14 Launcher . | . . Special . | . . Kinetic 60 | 4 56 Thermal 25 | 4 21 Explosive . | . . Electromagnetic . | . . Robot Hit Streak 21 | 3 21 Robot Miss Streak 5 | 3 5 Penetration Max . | . . Secondary Targets . | . . Shots Hit Robots 51 | 5 46 Core Hits 19 | 1 18 Critical Hits 1 | . 1 Critical Kills 1 | . 1 Critical Parts Destroyed . | . . Melee Attacks . | . . Impact . | . . Slashing . | . . Piercing . | . . Sneak Attacks . | . . Combat Hostiles . | . . Follow-up Attacks . | . . Damage Inflicted 733 | 78 655 Guns 507 | 78 429 Cannons 184 | . 184 Explosions 42 | . 42 Melee . | . . Ramming . | . . Kinetic 441 | 40 401 Thermal 250 | 38 212 Explosive . | . . Electromagnetic 42 | . 42 Impact . | . . Slashing . | . . Piercing . | . . Highest Corruption . | . . Average Corruption . | . . Corruption Purged . | . . Overload Shots . | . . Overflow Damage . | . . Projectiles . | . . Explosions . | . . Melee . | . . Knockbacks . | . . Impact . | . . Kinetic . | . . Secondary . | . . Self-Inflicted Damage . | . . Shots . | . . Rammed . | . . Targets Rammed . | . . Kicked . | . . Crushed . | . . Highest Temperature 152 | 66 152 Average Temperature 42 | 35 43 Received Heat Transfer 456 | 30 426 Siege Activations . | . . Robots Corrupted . | . . Combat Hostiles . | . . Parts Fried . | . . Impact Corruptions . | . . Robots Melted . | . . Combat Hostiles . | . . Parts Melted 2 | 1 1 Heat Transferred 555 | 111 444 Parts Sabotaged . | . . Parts Stolen . | . . Parts Stripped . | . . Power Chain Reactions . | . . Missiles Intercepted . | . . Alert | -11 -10 ------- Run | Scr Mat Peak Influence 228 | 20 228 Initial 13 | . 13 Average 74 | 4 83 Maximum Alert Level 1 | . 1 Low Security (%) 96 | 100 95 Level 1 3 | . 4 Level 2 . | . . Level 3 . | . . Level 4 . | . . Level 5 . | . . High Security . | . . Max Security . | . . Squads Dispatched 4 | . 4 Investigation 2 | . 2 Extermination . | . . Reinforcement 2 | . 2 Assault . | . . Garrison . | . . Intercept . | . . Construction Impeded . | . . Haulers Reinforced . | . . Stealth | -11 -10 --------- Run | Scr Mat Distress Signals 2 | . 2 Communications Jammed . | . . Distress Signals . | . . Times Spotted 21 | 1 20 Peak Tracking Total 8 | 1 8 Tactical Retreats . | . . Traps | -11 -10 ------- Run | Scr Mat Traps Triggered . | . . Indirectly . | . . Trap Hack Attempts . | . . Triggered . | . . Disarmed . | . . Reprogrammed . | . . Reused . | . . Traps Extracted . | . . Installed . | . . Triggered . | . . Machines | -11 -10 ---------- Run | Scr Mat Machines Disabled 2 | . 2 Max in Single Turn 1 | . 1 Machines Sabotaged . | . . Garrisons Compromised . | . . Overloaded Fab Kills . | . . Fab Network Shutdowns . | . . Hacking | -11 -10 --------- Run | Scr Mat Machines Accessed 3 | . 3 Terminals 2 | . 2 Fabricators . | . . Repair Stations 1 | . 1 Recycling Units . | . . Scanalyzers . | . . Garrison Access . | . . Total Hacks 10 | . 10 Successful 9 | . 9 Failed 1 | . 1 Catastrophic . | . . Database Lockouts . | . . Manual . | . . Terminals 5 | . 5 Fabricators . | . . Repair Stations 5 | . 5 Recycling Units . | . . Scanalyzers . | . . Garrison Access . | . . Terminal Hacks 5 | . 5 Record 3 | . 3 Alert Level 1 | . 1 Dispatch Records 1 | . 1 Fabricator Hacks . | . . Repair Station Hacks 4 | . 4 Scan Component 2 | . 2 Repair 1 | . 1 Refit 1 | . 1 Recycling Unit Hacks . | . . Scanalyzer . | . . Garrison Access Hacks . | . . Unauthorized Hacks . | . . Terminals . | . . Fabricators . | . . Repair Stations . | . . Recycling Units . | . . Scanalyzers . | . . Garrison Access . | . . Data Cores Recovered . | . . Used . | . . Hacking Detections 2 | . 2 Full Trace Events 2 | . 2 Feedback Events . | . . Feedback Blocked . | . . Robot Schematics Acquired . | . . Robots Built . | . . Matter . | . . Time . | . . Total Robot Build Rating . | . . Part Schematics Acquired . | . . Parts Built . | . . Matter . | . . Time . | . . Total Part Build Rating . | . . Parts Repaired 1 | . 1 Time 26 | . 26 Parts Recycled . | . . Recycled Matter . | . . Retrieved Matter . | . . Retrieved Components . | . . Parts Scanalyzed . | . . Part Schematics Acquired . | . . Parts Damaged . | . . Bothacking | -11 -10 ------------ Run | Scr Mat Used RIF Installer . | . . Robots Hacked . | . . Non-combat . | . . Combat . | . . Robot Hacks Applied . | . . Relay Couplers Released . | . . Robots Rewired . | . . Allies Hacked . | . . Hacks Repelled . | . . Allies | -11 -10 -------- Run | Scr Mat Total Allies . | . . Largest Group . | . . Highest-Rated Group . | . . Highest-Rated Ally . | . . Total Orders . | . . Ally Attacks . | . . Total Damage . | . . Kills . | . . Allies Corrupted . | . . Allies Melted . | . . Intel | -11 -10 ------- Run | Scr Mat Robot Analysis Total . | . . Derelict Logs Recovered . | . . Drone Launches . | . . Drone Recoveries . | . . Exploration | -11 -10 ------------- Run | Scr Mat Turns Passed 899 | 102 797 Spaces Moved 551 | 113 438 Core 79 | 65 14 Treads . | . . Legs 289 | . 289 Wheels 183 | 48 135 Hover . | . . Flight . | . . Fastest Speed 50 | 50 80 Average Speed 119 | 68 133 Slowest Speed 180 | 150 180 Overloaded Moves . | . . Propulsion Burnouts . | . . Robots Hopped . | . . Cave-ins Triggered . | . . Exploration Rate (%) 35 | 7 63 Regions Visited 1 Branch Regions . Pre-discovered Areas . | . . Known Exits Taken . | . . Unknown Exits Taken 1 | 1 . Scrap Searched . | . . Spaces Dug . | . . Terrain Destroyed . | . . Melee . | . . Projectile . | . . AOE . | . . Terrain Rammed . | . . Walls Destroyed . | . . Machines Disabled . | . . Actions | -11 -10 --------- Run | Scr Mat Total 708 | 130 578 Wait 23 | . 23 Move 550 | 112 438 Hop . | . . Pick Up 33 | 8 25 Fast Attach . | . . Attach 13 | 5 8 Detach 2 | . 2 Swap 15 | 1 14 Drop 11 | . 11 Fire 61 | 4 57 Melee . | . . Ram . | . . Kick . | . . Crush . | . . Escape Stasis . | . . Rewire . | . . Trap . | . . Miscellaneous . | . . Route ------- -11/Scrapyard -10/Materials (discovered 2 exits: [*Mat x2]) History --------- Turn | Location | Event 2 | -11/Scrapyard | Met Revision 17 69 | -11/Scrapyard | Discovered new exit (range 8) 103 | -11/Scrapyard | Entered Materials 169 | -10/Materials | Repaired Med. Laser? 215 | -10/Materials | Core integrity fell below 50% 316 | -10/Materials | Build established: Mutant 476 | -10/Materials | Discovered new exit (range 13) 601 | -10/Materials | Core integrity fell below 20% 700 | -10/Materials | Discovered new exit (range 6) 900 | -10/Materials | Destroyed by S-10 Pest with Light Assault Rifle Last Messages --------------- >>Enumerate(Squads) Retrieving dispatch records... Found 6 active squads: 2x Surveillance 2x Patrol 2x Transport 00808_ R-06 Scavenger collects Aluminum Leg. 00832_ Matter Pump disabled. 00840_ Acquired 5 matter. [Achievement: Storm Trooper] 00877_ W-16 Scout sends out distress signal. 00880_ W-16 Scout destroyed. 00883_ ALERT: Hostiles spotted, dispatching reinforcements to Terminal M004. 00883_ S-10 Pest destroyed. 00885_ Lgt. Ion Engine destroyed. 00887_ U-05 Engineer lays Concrete. 00898_ Assault Rifle destroyed. 00898_ U-05 Engineer lays Concrete. [Achievement: First Step to Greatness] Map ----- +----------------------------------------------------+ | ?????????????????????# "R" #?# ## | | ?????????????????????# """ #?# ## | | ?????????????????????# #?################ | | ?????????????????????#####+#????????????????# | | ????????????????????????? ????????????????# | | ????????????????????????? ???????????????# | | ????????????????????????? ???????????????# | | ?????????????????????????#####??????????????# | | ????????????????????????????????????????????# | | ????????????????????????????????????????????## | | ??????????????????? ??????????????????????? | | ?????????????????? ??????????????????????# | | ??????????????????/% #?????????????????????# | | ??????????????????/ #?????????????????????# | | ??????????????????% = #?????????????????????# | | ???????????????????!% +?????????????????????# | | ??????????????????? * #?????????????????????# | | ??????????????????? g#?????????????????????# | | ??????????????????? #?????????????????????? | | ???????????????????#g #?????????? ???????? | | ?##########????????#s* #??????????# ???????? | | ?# #????????#[s #??????????# ???????? | | ?# #????????# ############ #??????? | | ?# #????????# u #??????? | | ?# #????????# #??????? | | ?# #????????# @ #??????? | | ?# #????????# k # ????? | | ?# ########## u r + "Y" ?? | | ?# + # """??? | | ?# #################### %* # ???? | | ?#######+###########???? """?# """ #+#????? | | ?????# #???? "T" # """ #????# | | ?????# ##??? ? " # """ ###### | | ?????# +??? ??? + / | | ?????# """ """ ##?? ????# #### | | ?????## "" """ #? """ ???# #??# | | ??????# """ """ #??""" ???#! #??# | | ??????+ #???"" ???#!! #??# | | ??????# #???? ???#! < #??# | | ??????# """ """ #????#+#?## [ #??# | | ??????# """ """ ###### ### *] #### | | ??????# """ """ [*] | | ??????# *]] | | ??????# ! | | ??????# ###### ######## ==! | | ??????###?????# #???######+####### =!= | | ??????????????#[[[[!!#???# ## [ | | ??????????????#[[[[!!#???# T + | | ??????????????########???# = ##+#####+ | | ?????????????????????????# # | +----------------------------------------------------+ Best States ------------- Heat Dissipation 35 Energy Generation 10 Energy Capacity 250 Matter Stores 300 Matter Capacity 300 Sight Range 16 Robot Scan Range 10 Terrain Scan Density 10 Propulsion Shielding 33 Evasion (%) 50 Item Schematics ----------------- None Robot Schematics ------------------ None Fabricated ------------ Nothing Alien Tech Used ----------------- None Achievements -------------- Crack Shot First Step to Greatness One Hack Too Far Part-time Mechanic Storm Trooper Uninvited Guest Challenges ------------ None Game ------ Seed ActuatorGlidesysStreamer Manual? 0 Play Time 00:48:46 Cumulative 1.5 hours Start 2021.11.15 @ 19:33:14 End 2021.11.15 @ 20:32:04 Sessions 1 Manual Loads 0 Difficulty Rogue Special Mode None Game No. 1 Rogue 1 Adventurer 0 Explorer 0 Win Type - Total 0 Types 0/0/0/0/0/0/0/0/0 Lore% 0 Gallery% 1 Achievement% 2 Wizard Run 0 Options --------- ASCII 0 Keyboard 0 Movement Mouse Keybinds 0 Fullscreen 1 Font 16/Dina Map View 50x54 Tactical HUD 1 Map Filters NONE Filters NONE Steam 1 RUN: b95bff94-f9dd-4dcb-a03d-55099fa214de